bitfinex-derivatives/quotes_BTCF0:USTF0_20240815
["timestamp","ask_amount","ask_price","bid_price","bid_amount"]
[1723750194447,0.087727,56987.0,56979.0,0.3608]
[1723750194646,0.00026312,56986.0,56985.0,0.3608]
[1723750194954,0.00026312,56986.0,56979.0,0.3608]
[1723750195135,0.00026312,56986.0,56977.0,0.3608]
[1723750195335,0.36106312,56986.0,56977.0,0.3608]
[1723750195540,0.087736,56981.0,56977.0,0.3608]
[1723750195746,0.00026312,56986.0,56977.0,0.3608]
[1723750195945,0.087729,56985.0,56984.0,0.3608]
[1723750196141,0.087729,56985.0,56977.0,0.3608]
[1723750196543,0.00026312,56986.0,56985.0,0.087729]
[1723750197147,0.087703,57002.0,56985.0,1.28724]
[1723750197448,0.3608,56999.0,56985.0,0.02176088]
[1723750197639,0.3608,56994.0,56985.0,0.02176088]
[1723750197844,0.014,56986.0,56985.0,0.02276088]
[1723750198543,0.3608,56994.0,56985.0,0.001]
[1723750198544,0.00016951,56991.0,56985.0,0.001]
[1723750198855,0.087728,56986.0,56985.0,0.02461054]
[1723750200352,0.087728,56986.0,56985.0,0.02361054]
[1723750200560,1.028168,56986.0,56980.0,0.00026312]
[1723750200746,0.087756,56968.0,56959.0,0.3608]
[1723750201061,0.087768,56960.0,56947.0,0.087787]
[1723750201353,0.087788,56947.0,56946.0,0.3608]
[1723750201655,0.01754122,56947.0,56939.0,0.3608]
[1723750201851,0.01754122,56947.0,56938.0,0.087802]
[1723750202055,0.00013536,56946.0,56933.0,0.3608]
[1723750202252,0.37940179,56946.0,56926.0,0.08782]
[1723750202554,0.3608,56941.0,56934.0,0.3608]
[1723750202947,0.3608,56941.0,56924.0,3.77]
[1723750203253,0.3608,56941.0,56934.0,0.087808]
[1723750203460,0.36093536,56946.0,56934.0,0.087808]
[1723750203461,0.00013536,56946.0,56945.0,0.087791]
[1723750203647,0.00026337,56952.0,56951.0,0.087782]
[1723750203956,0.08777,56959.0,56952.0,0.08778]
[1723750204145,0.00026337,56957.0,56952.0,0.08778]
[1723750204346,0.00026337,56957.0,56953.0,0.087779]
[1723750204655,0.00026337,56957.0,56951.0,0.3608]
[1723750204656,0.00026337,56957.0,56956.0,0.448574]
[1723750204853,0.00010337,56957.0,56956.0,0.448574]
[1723750205354,0.00010337,56957.0,56950.0,0.00026337]
[1723750205647,0.087782,56951.0,56950.0,0.00026337]
[1723750206153,0.03603095,56951.0,56938.0,0.3608]
[1723750206354,0.03603095,56951.0,56943.0,0.3608]
[1723750206648,0.3608,56953.0,56943.0,0.3608]
[1723750206854,0.087793,56944.0,56943.0,0.3608]
[1723750207153,0.0878,56939.0,56933.0,0.3608]
[1723750207358,0.00832609,56944.0,56938.0,0.00026337]
[1723750207553,0.3608,56954.0,56943.0,0.087794]
[1723750207554,0.087787,56948.0,56943.0,0.087794]
[1723750207852,0.3608,56954.0,56938.0,0.36106337]
[1723750207853,0.00026337,56942.0,56938.0,0.36106337]
[1723750208050,0.00184991,56953.0,56939.0,0.52688]
[1723750208253,0.087781,56952.0,56943.0,0.087793]
[1723750208554,0.04528181,56950.0,56947.0,0.087787]
[1723750208752,0.04528181,56950.0,56945.0,0.08779]
[1723750209054,0.04528181,56950.0,56938.0,0.36106337]
[1723750209560,0.04528181,56950.0,56949.0,0.3608]
[1723750209750,0.04528181,56950.0,56938.0,4.13106337]
[1723750210056,0.04528181,56950.0,56947.0,0.087788]
[1723750210247,0.009,56951.0,56943.0,0.3608]
[1723750210447,0.087782,56951.0,56946.0,0.087789]
[1723750210750,0.00126337,56953.0,56949.0,0.3608]
[1723750210951,0.3608,56952.0,56943.0,0.3608]
[1723750211148,0.3608,56952.0,56943.0,0.6968]
[1723750211355,0.003,56950.0,56943.0,0.17]
[1723750211658,0.003,56950.0,56948.0,0.087785]
[1723750211854,0.003,56950.0,56949.0,0.087785]
[1723750212058,0.003,56950.0,56949.0,3.997785]
[1723750212258,0.3638,56950.0,56949.0,3.91]
[1723750212554,0.3638,56950.0,56944.0,0.00026337]
[1723750212752,0.3608,56945.0,56944.0,0.00026337]
[1723750212959,0.448591,56945.0,56944.0,0.00026337]
[1723750213158,1.48689081,56945.0,56917.0,0.3608]
[1723750213354,0.448626,56923.0,56917.0,0.5008]
[1723750213548,0.448626,56923.0,56918.0,0.087832]
[1723750213757,0.087831,56920.0,56918.0,0.15]
[1723750214060,0.3608,56923.0,56917.0,0.448633]
[1723750214257,0.3608,56923.0,56918.0,0.52704]
[1723750214454,0.3608,56923.0,56922.0,0.087827]
[1723750214651,0.3618,56923.0,56922.0,0.774867]
[1723750214854,0.3618,56923.0,56922.0,1.174867]
[1723750215349,0.3618,56923.0,56922.0,0.774867]
[1723750215554,0.3618,56923.0,56922.0,1.174867]
[1723750215951,0.3618,56923.0,56922.0,0.16]
[1723750216261,0.3618,56923.0,56922.0,0.15]
[1723750216858,0.3618,56923.0,56916.0,0.087834]
[1723750217050,0.3608,56917.0,56916.0,0.237834]
[1723750217256,0.087837,56915.0,56914.0,0.00014301]
[1723750217567,0.448637,56915.0,56914.0,0.00014301]
[1723750218256,0.3608,56915.0,56914.0,0.00014301]
[1723750218653,0.448637,56915.0,56914.0,0.00014301]
[1723750218850,0.448637,56915.0,56913.0,0.00026337]
[1723750219163,0.46447068,56915.0,56899.0,3.77]
[1723750219362,0.3618,56915.0,56899.0,3.92852875]
[1723750219566,0.3618,56915.0,56905.0,0.3608]
[1723750219753,0.3618,56915.0,56905.0,0.5108]
[1723750219951,0.00014301,56914.0,56906.0,0.087851]
[1723750220168,0.3608,56908.0,56906.0,0.237851]
[1723750220478,0.3608,56908.0,56906.0,0.15]
[1723750220760,0.3608,56908.0,56904.0,0.00026337]
[1723750220966,0.087853,56905.0,56904.0,0.00026337]
[1723750221364,0.3608,56907.0,56904.0,3.77026337]
[1723750221565,0.3608,56907.0,56906.0,0.009]
[1723750221868,0.44865,56907.0,56906.0,0.009]
[1723750222062,0.44865,56907.0,56891.0,0.00857849]
[1723750222063,0.087868,56896.0,56891.0,0.00857849]
[1723750222258,0.087877,56889.0,56888.0,0.00021089]
[1723750222764,0.087877,56889.0,56888.0,0.02053803]
[1723750222967,0.087886,56884.0,56877.0,0.087895]
[1723750223156,0.32660584,56889.0,56888.0,0.05705485]
[1723750223372,0.00026361,56886.0,56875.0,0.08816161]
[1723750223572,0.3608,56881.0,56875.0,0.14026361]
[1723750223768,0.3608,56876.0,56875.0,0.14026361]
[1723750223981,0.36094451,56876.0,56875.0,0.14026361]
[1723750224186,0.36094451,56876.0,56875.0,1.15564261]
[1723750224376,0.3608,56882.0,56881.0,0.087889]
[1723750224576,0.00026361,56886.0,56882.0,0.087888]
[1723750224785,0.00026361,56886.0,56882.0,0.17]
[1723750224975,0.00026361,56886.0,56884.0,0.087884]
[1723750225176,0.00026361,56886.0,56885.0,0.087884]
[1723750225374,0.00044845,56886.0,56875.0,0.00885218]
[1723750225581,0.00044845,56886.0,56882.0,0.087888]
[1723750225779,0.00044845,56886.0,56883.0,0.087887]
[1723750225982,0.3608,56893.0,56885.0,0.3608]
[1723750226281,0.3608,56897.0,56885.0,0.16]
[1723750226483,0.087884,56885.0,56881.0,0.3628]
[1723750226679,0.3608,56890.0,56881.0,0.01062781]
[1723750226873,0.3608,56883.0,56881.0,0.01062781]
[1723750227075,0.3608,56883.0,56882.0,0.087888]
[1723750227277,0.3608,56883.0,56882.0,0.17]
[1723750227676,0.3608,56883.0,56882.0,0.257888]
[1723750227876,0.3638,56883.0,56882.0,0.17]
[1723750228079,0.087896,56878.0,56876.0,0.00026361]
[1723750228284,0.52577682,56883.0,56876.0,0.00026361]
[1723750228581,0.37099996,56877.0,56876.0,0.00916785]
[1723750228786,0.448696,56877.0,56876.0,0.00026361]
[1723750229485,0.90400392,56877.0,56860.0,0.8198]
[1723750229686,0.3608,56872.0,56860.0,0.9698]
[1723750229982,0.17681871,56871.0,56864.0,0.087915]
[1723750230288,0.3608,56877.0,56864.0,0.15]
[1723750230484,0.002,56883.0,56860.0,0.3608]
[1723750230485,0.3608,56869.0,56860.0,0.3608]
[1723750230682,0.18979955,56870.0,56862.0,0.00026361]
[1723750230985,0.3608,56871.0,56863.0,3.77]
[1723750231186,0.3608,56871.0,56864.0,0.001]
[1723750231383,0.087915,56865.0,56864.0,0.001]
[1723750231579,0.087915,56865.0,56862.0,0.00026361]
[1723750231580,0.3608,56866.0,56862.0,0.00026361]
[1723750231781,0.3608,56866.0,56853.0,0.00879641]
[1723750231782,0.448717,56864.0,56853.0,0.00879641]
[1723750232084,0.087931,56855.0,56851.0,3.77]
[1723750232283,0.087933,56853.0,56851.0,3.77]
[1723750232476,0.087933,56853.0,56851.0,3.77867086]
[1723750232683,0.087936,56851.0,56845.0,0.3608]
[1723750232888,0.3618,56870.0,56850.0,1.4486043]
[1723750233085,0.3618,56870.0,56855.0,0.087928]
[1723750233086,0.3608,56861.0,56855.0,0.087928]
[1723750233287,0.3608,56865.0,56859.0,0.087923]
[1723750233477,0.448716,56865.0,56858.0,0.21149785]
[1723750233677,0.087924,56859.0,56858.0,0.21149785]
[1723750233993,0.3608,56859.0,56858.0,0.29942285]
[1723750234383,0.00026385,56866.0,56865.0,0.087915]
[1723750234594,0.00026385,56866.0,56865.0,0.087875]
[1723750234889,0.087918,56863.0,56858.0,0.22017818]
[1723750235092,0.00026385,56866.0,56858.0,0.21149785]
[1723750235093,0.087924,56859.0,56858.0,0.21149785]
[1723750235684,0.3608,56862.0,56858.0,0.21149785]
[1723750235986,0.00026385,56866.0,56862.0,0.087919]
[1723750236481,0.00026385,56866.0,56864.0,0.20249785]
[1723750236678,0.3608,56868.0,56867.0,0.087911]
[1723750236988,0.3608,56881.0,56867.0,0.66756]
[1723750237287,0.3608,56881.0,56880.0,0.087891]
[1723750237587,0.3608,56887.0,56880.0,0.36249785]
[1723750237983,0.3608,56887.0,56884.0,0.087884]
[1723750238182,0.3608,56887.0,56885.0,0.087883]
[1723750238377,0.3608,56887.0,56880.0,0.20249785]
[1723750238378,0.00026385,56889.0,56880.0,0.20249785]
[1723750238692,0.00026385,56889.0,56884.0,0.20249785]
[1723750238891,0.00026385,56889.0,56888.0,0.087879]
[1723750239090,0.00026385,56889.0,56888.0,0.52530916]
[1723750239286,0.087862,56900.0,56890.0,0.087874]
[1723750239595,0.25532014,56906.0,56890.0,0.087874]
[1723750239596,0.3894889,56906.0,56896.0,0.15586281]
[1723750239806,0.00244001,56907.0,56905.0,0.49934554]
[1723750240096,0.3608,56935.0,56906.0,0.51060835]
[1723750240284,0.3608,56935.0,56931.0,0.12116322]
[1723750240482,0.3608,56935.0,56932.0,0.26332596]
[1723750240683,0.3608,56947.0,56938.0,0.087801]
[1723750240882,0.3608,56947.0,56942.0,0.12119997]
[1723750241085,0.3608,56954.0,56950.0,0.087783]
[1723750241289,0.3608,56954.0,56951.0,0.34442522]
[1723750241495,0.3608,56964.0,56955.0,0.087775]
[1723750241687,0.3626,56969.0,56953.0,0.3608]
[1723750241688,0.3608,56969.0,56962.0,0.3608]
[1723750241887,0.3608,56969.0,56964.0,0.13850089]
[1723750242089,0.3608,56979.0,56966.0,0.087757]
[1723750242293,0.3608,56979.0,56962.0,0.49930089]
[1723750242294,0.087751,56971.0,56967.0,0.38284197]
[1723750242500,0.087755,56969.0,56968.0,0.15967737]
[1723750242688,0.087755,56969.0,56968.0,0.36217522]
[1723750242996,0.3608,56971.0,56968.0,0.44548033]
[1723750243187,0.3608,56971.0,56969.0,0.24298248]
[1723750243496,0.00026338,56972.0,56970.0,0.24197888]
[1723750243790,0.3608,56982.0,56971.0,0.80527673]
[1723750243984,0.3608,56982.0,56975.0,0.12089555]
[1723750244190,0.3608,56982.0,56976.0,0.15967737]
[1723750244389,0.3608,56982.0,56971.0,0.56329785]
[1723750244390,0.448534,56982.0,56981.0,0.10346813]
[1723750244588,0.448534,56982.0,56981.0,0.17516139]
[1723750244788,0.448534,56982.0,56981.0,0.37765924]
[1723750245189,0.448534,56982.0,56981.0,0.27419111]
[1723750246293,0.448534,56982.0,56966.0,0.12089555]
[1723750246294,0.3608,56982.0,56968.0,0.04513642]
[1723750246488,0.3608,56976.0,56953.0,0.087777]
[1723750246692,0.1,56969.0,56967.0,0.087756]
[1723750246995,0.1,56969.0,56968.0,3.77]
[1723750247490,0.1,56969.0,56950.0,0.00849357]
[1723750247690,0.08777,56959.0,56952.0,0.08778]
[1723750247895,0.087771,56958.0,56950.0,0.00849357]
[1723750248191,0.087756,56968.0,56956.0,0.00026338]
[1723750248490,0.087765,56963.0,56956.0,0.00026338]
[1723750248687,0.00026338,56962.0,56956.0,0.00026338]
[1723750249091,0.087771,56958.0,56956.0,0.00026338]
[1723750249302,0.00026338,56962.0,56956.0,0.00026338]
[1723750249593,0.1,56969.0,56963.0,0.087763]
[1723750249788,0.1,56969.0,56963.0,0.257763]
[1723750249982,0.1,56969.0,56963.0,0.17]
[1723750250188,0.1,56969.0,56967.0,0.087756]
[1723750250391,0.1,56969.0,56967.0,0.257756]
[1723750250589,0.1,56969.0,56968.0,0.8874]
[1723750250895,0.1,56969.0,56968.0,1.0374]
[1723750251089,0.00026338,56974.0,56968.0,1.4374]
[1723750251286,0.00026338,56974.0,56968.0,0.5108]
[1723750251496,0.087718,56993.0,56968.0,0.5108]
[1723750251497,0.087726,56988.0,56973.0,0.3608]
[1723750251690,0.087726,56988.0,56979.0,0.3608]
[1723750251892,0.087728,56986.0,56979.0,0.5008]
[1723750252094,0.08773,56985.0,56979.0,0.14]
[1723750252290,0.3608,57000.0,56984.0,0.448531]
[1723750252491,0.3608,57000.0,56984.0,0.618531]
[1723750252700,0.087709,56998.0,56985.0,3.77]
[1723750252902,0.087714,56995.0,56986.0,0.08799038]
[1723750253099,0.087711,56997.0,56986.0,0.15026338]
[1723750253493,0.00026338,56998.0,56989.0,0.3608]
[1723750253691,0.00026338,56998.0,56995.0,0.3608]
[1723750253893,0.00026338,56998.0,56995.0,0.14]
[1723750254093,0.3608,57023.0,56995.0,0.66632]
[1723750254292,0.3608,57023.0,57001.0,0.3608]
[1723750254495,0.448472,57023.0,57014.0,0.087684]
[1723750254703,0.3608,57032.0,57015.0,0.3608]
[1723750254997,0.3608,57039.0,57024.0,0.3608]
[1723750255408,0.3608,57044.0,57030.0,0.3608]
[1723750255702,0.3608,57044.0,57035.0,0.3608]
[1723750255895,0.00856513,57075.0,57035.0,0.3608]
[1723750255896,0.3608,57055.0,57040.0,0.3608]
[1723750256096,0.3608,57055.0,57040.0,0.608444]
[1723750256303,0.3608,57055.0,57042.0,0.448441]
[1723750256600,0.087631,57049.0,57042.0,0.3608]
[1723750256805,0.087631,57049.0,57042.0,0.3610629]
[1723750257002,0.448423,57055.0,57047.0,0.3608]
[1723750257299,0.3608,57066.0,57054.0,0.3608]
[1723750257602,0.087607,57065.0,57054.0,0.5308]
[1723750257997,0.3608,57066.0,57054.0,0.5308]
[1723750258215,0.3608,57066.0,57060.0,0.3608]
[1723750258401,0.3608,57066.0,57060.0,0.988413]
[1723750258596,0.3608,57066.0,57058.0,0.49568]
[1723750258597,0.3608,57066.0,57061.0,0.3608]
[1723750258797,0.087604,57067.0,57061.0,0.3608]
[1723750258997,0.3608,57073.0,57061.0,0.3608]
[1723750259193,0.333323,57094.0,57061.0,0.3608]
[1723750259194,0.087589,57077.0,57066.0,0.3608]
[1723750259402,0.3608,57079.0,57066.0,0.3608]
[1723750259603,0.3608,57070.0,57055.0,0.3608]
[1723750259903,0.3608,57070.0,57061.0,0.3608]
[1723750260098,0.087597,57071.0,57067.0,0.0002629]
[1723750260406,0.3608,57081.0,57067.0,0.0002629]
[1723750260606,0.087593,57074.0,57067.0,0.0002629]
[1723750260904,0.3608,57081.0,57067.0,0.0002629]
[1723750260905,0.0876,57069.0,57067.0,0.0002629]
[1723750261101,0.3608,57068.0,57067.0,0.0002629]
[1723750261306,0.2608,57068.0,57057.0,0.3608]
[1723750261617,0.448391,57075.0,57064.0,0.3608]
[1723750261904,0.3608,57075.0,57069.0,0.3608]
[1723750262203,0.087588,57077.0,57069.0,0.3608]
[1723750262408,0.087602,57068.0,57067.0,0.001]
[1723750262704,0.3608,57068.0,57046.0,0.3608]
[1723750262894,0.3608,57063.0,57046.0,0.3608]
[1723750263094,0.3608,57063.0,57052.0,0.3608]
[1723750263404,0.0876,57069.0,57061.0,0.087612]
[1723750263603,0.087593,57074.0,57066.0,0.3608]
[1723750263806,0.003,57075.0,57066.0,0.5108]
[1723750264101,0.003,57075.0,57062.0,0.24552]
[1723750264313,0.3608,57069.0,57059.0,0.3608]
[1723750264499,0.0002629,57071.0,57059.0,0.9208]
[1723750264808,0.0001029,57071.0,57065.0,0.3608]
[1723750265005,0.0001029,57071.0,57065.0,0.5208]
[1723750265207,0.0001029,57071.0,57070.0,0.3608]
[1723750265509,0.0001029,57071.0,57070.0,0.5008]
[1723750265703,0.3608,57084.0,57070.0,0.5008]
[1723750265904,0.087581,57082.0,57070.0,0.5008]
[1723750266110,0.087582,57081.0,57075.0,0.3608]
[1723750266407,0.3608,57084.0,57075.0,0.45823851]
[1723750266609,0.3608,57084.0,57075.0,0.54582951]
[1723750266913,0.4511,57098.0,57075.0,0.54582951]
[1723750266914,0.3608,57098.0,57082.0,0.3608]
[1723750267103,0.3608,57098.0,57086.0,0.3608]
[1723750267307,0.087559,57096.0,57087.0,0.087573]
[1723750267605,0.3608,57098.0,57091.0,0.3608]
[1723750267801,0.3608,57098.0,57095.0,0.08756]
[1723750267997,0.3608,57098.0,57095.0,0.17]
[1723750267998,0.087556,57098.0,57095.0,0.17]
[1723750268204,0.087556,57098.0,57097.0,0.3608]
[1723750268405,0.087551,57102.0,57097.0,0.5108]
[1723750268706,0.3608,57112.0,57097.0,0.5108]
[1723750268907,0.448326,57118.0,57097.0,0.5108]
[1723750268908,0.3508,57118.0,57109.0,0.3608]
[1723750269110,0.3508,57118.0,57109.0,0.16]
[1723750269411,0.3608,57113.0,57106.0,0.00894013]
[1723750269706,0.087524,57119.0,57112.0,0.3608]
[1723750269912,0.3608,57124.0,57117.0,0.448327]
[1723750270112,0.3608,57124.0,57117.0,0.5008]
[1723750270411,0.97058,57149.0,57117.0,0.5008]
[1723750270412,0.3608,57134.0,57117.0,0.5008]
[1723750270608,0.087502,57133.0,57123.0,0.3608]
[1723750270813,0.3608,57134.0,57123.0,0.3608]
[1723750270814,0.3608,57134.0,57129.0,0.3608]
[1723750271111,0.087487,57143.0,57132.0,0.087504]
[1723750271307,0.3608,57145.0,57141.0,0.08749]
[1723750271308,0.3508,57145.0,57141.0,0.08749]
[1723750271500,0.087478,57149.0,57141.0,0.16857573]
[1723750271701,0.3608,57162.0,57147.0,0.3608]
[1723750271907,0.3608,57162.0,57141.0,0.00857573]
[1723750272118,0.3608,57163.0,57148.0,0.3608]
[1723750272307,0.3608,57157.0,57148.0,0.3608]
[1723750272511,0.087477,57150.0,57148.0,0.3608]
[1723750272905,0.3608,57151.0,57140.0,0.3608]
[1723750273111,0.3608,57157.0,57129.0,0.001]
[1723750273112,0.087505,57131.0,57129.0,0.001]
[1723750273407,0.3608,57130.0,57129.0,0.001]
[1723750273611,0.08751,57128.0,57118.0,0.087525]
[1723750273810,0.087517,57124.0,57118.0,0.15]
[1723750273999,0.087512,57127.0,57123.0,0.3608]
[1723750274199,0.3608,57136.0,57124.0,0.00026243]
[1723750274404,0.004,57131.0,57129.0,0.3618]
[1723750274609,0.004,57131.0,57129.0,0.449308]
[1723750275203,0.3608,57145.0,57130.0,0.52512]
[1723750275411,0.3608,57138.0,57129.0,0.36272]
[1723750275604,0.535814,57130.0,57129.0,0.00192]
[1723750275809,0.087514,57125.0,57124.0,0.00026243]
[1723750276014,0.448314,57125.0,57124.0,0.00026243]
[1723750276214,0.51501405,57125.0,57111.0,0.22073982]
[1723750276405,0.51501405,57125.0,57105.0,0.3608]
[1723750276406,0.3608,57118.0,57105.0,0.3608]
[1723750276708,0.3608,57125.0,57110.0,0.3608]
[1723750276908,0.3608,57125.0,57110.0,0.5108]
[1723750277113,0.3608,57125.0,57117.0,0.087526]
[1723750277314,0.3608,57125.0,57117.0,0.15888118]
[1723750277613,0.3608,57130.0,57124.0,0.087516]
[1723750277907,0.087503,57133.0,57124.0,0.16]
[1723750278113,0.0658273,57142.0,57125.0,0.3608]
[1723750278312,0.3608,57145.0,57138.0,0.087494]
[1723750278503,0.08749,57141.0,57138.0,0.14]
[1723750279409,0.36064,57145.0,57138.0,0.14]
[1723750279600,0.3608,57139.0,57130.0,0.3608]
[1723750279803,0.3608,57131.0,57117.0,0.011]
[1723750280108,0.3608,57125.0,57117.0,0.14]
[1723750280302,0.087518,57123.0,57117.0,0.14]
[1723750280705,0.0658273,57124.0,57118.0,0.5252]
[1723750280901,0.0558183,57133.0,57123.0,0.087517]
[1723750281106,0.0558183,57131.0,57123.0,0.14]
[1723750281308,0.3608,57134.0,57126.0,0.087513]
[1723750281309,0.08426314,57129.0,57126.0,0.087513]
[1723750281511,0.087507,57130.0,57126.0,0.14]
[1723750281712,0.08426314,57131.0,57126.0,0.14]
[1723750282012,0.44506314,57134.0,57127.0,0.52512]
[1723750282210,0.00026243,57133.0,57127.0,0.17]
[1723750282407,0.08426314,57128.0,57127.0,0.17]
[1723750282611,0.13047376,57132.0,57127.0,0.17]
[1723750282801,0.08311348,57129.0,57127.0,0.257511]
[1723750283109,0.08311348,57130.0,57129.0,0.087508]
[1723750283318,0.02835719,57130.0,57129.0,0.237508]
[1723750283617,0.13047159,57130.0,57129.0,0.15]
[1723750283815,0.21797859,57130.0,57129.0,0.15]
[1723750284014,0.02835719,57130.0,57129.0,0.15]
[1723750284316,0.002,57131.0,57129.0,0.15]
[1723750285105,0.089505,57131.0,57129.0,0.15]
[1723750285305,0.087507,57130.0,57129.0,0.15]
[1723750285915,0.00026243,57133.0,57129.0,0.15]
[1723750286417,0.00026243,57133.0,57132.0,0.087504]
[1723750286608,0.00026243,57133.0,57132.0,0.247504]
[1723750286809,0.00026243,57133.0,57132.0,1.533384]
[1723750287129,0.3608,57155.0,57133.0,0.087502]
[1723750287318,0.3608,57155.0,57144.0,0.087485]
[1723750287612,0.087473,57153.0,57144.0,0.17896094]
[1723750288014,0.087473,57152.0,57144.0,0.17896094]
[1723750288411,0.3608,57155.0,57144.0,0.17896094]
[1723750288608,0.3608,57155.0,57144.0,0.26644594]
[1723750289015,0.3608,57155.0,57144.0,0.17896094]
[1723750289319,0.3608,57149.0,57144.0,0.17896094]
[1723750289819,0.3618,57155.0,57146.0,0.3608]
[1723750290022,0.3618,57155.0,57146.0,0.5008]
[1723750290524,0.3618,57155.0,57110.0,0.3608]
[1723750290525,0.087485,57145.0,57110.0,0.3608]
[1723750290715,0.087485,57145.0,57105.0,0.448344]
[1723750290716,0.3608,57126.0,57114.0,0.14]
[1723750290908,0.087522,57120.0,57114.0,0.14876992]
[1723750291115,0.3608,57121.0,57114.0,0.14876992]
[1723750291415,0.08385834,57119.0,57118.0,0.087525]
[1723750291615,0.08385834,57119.0,57118.0,0.257525]
[1723750291817,0.08385834,57120.0,57119.0,0.087524]
[1723750292023,0.08385834,57122.0,57120.0,0.087522]
[1723750292220,0.08385834,57121.0,57120.0,0.15]
[1723750292519,0.08395409,57121.0,57120.0,0.237522]
[1723750292821,0.08395409,57122.0,57121.0,0.087521]
[1723750293025,0.00026243,57123.0,57122.0,0.087519]
[1723750293221,0.02862345,57123.0,57122.0,0.257519]
[1723750293426,0.02862345,57123.0,57122.0,1.44844125]
[1723750293618,0.04913646,57129.0,57123.0,0.52516]
[1723750293941,0.3608,57136.0,57135.0,0.087499]
[1723750294219,0.3608,57147.0,57135.0,0.14]
[1723750294415,0.0283509,57146.0,57145.0,0.087484]
[1723750294634,0.0283509,57146.0,57145.0,0.227484]
[1723750295725,0.11899404,57146.0,57145.0,0.227484]
[1723750295912,0.0283509,57146.0,57145.0,0.227484]
[1723750296316,0.11923765,57146.0,57145.0,0.227484]
[1723750296515,0.11923765,57146.0,57145.0,1.114244]
[1723750296516,0.12123765,57146.0,57145.0,1.114244]
[1723750296721,0.12123765,57146.0,57145.0,0.228484]
[1723750297323,0.12123765,57146.0,57145.0,0.141]
[1723750297515,0.12123765,57146.0,57145.0,0.228484]
[1723750297721,0.12123765,57146.0,57145.0,0.141]
[1723750297915,0.25739018,57146.0,57145.0,0.001]
[1723750298117,0.12123765,57146.0,57145.0,0.088484]
[1723750298426,0.12123765,57146.0,57145.0,0.161]
[1723750298621,0.22586712,57146.0,57145.0,0.161]
[1723750298822,0.44950165,57146.0,57145.0,0.161]
[1723750299124,0.44855303,57146.0,57145.0,0.06836978]
[1723750299327,0.08749,57141.0,57140.0,0.00026243]
[1723750299521,0.47664643,57141.0,57140.0,0.00026243]
[1723750300529,1.48917643,57141.0,57140.0,0.00026243]
[1723750300724,1.40517891,57141.0,57117.0,0.00874642]
[1723750300932,0.3608,57126.0,57117.0,0.14]
[1723750301122,0.087507,57130.0,57122.0,0.087518]
[1723750301323,0.087507,57130.0,57122.0,0.247518]
[1723750301516,0.3608,57134.0,57122.0,0.16]
[1723750301517,0.3608,57126.0,57122.0,0.16]
[1723750302333,0.3608,57126.0,57118.0,0.00026243]
[1723750302334,0.3608,57125.0,57118.0,0.00026243]
[1723750302626,0.448324,57119.0,57118.0,0.16026243]
[1723750302820,0.448324,57119.0,57118.0,0.00026243]
[1723750303021,0.3608,57119.0,57118.0,0.00026243]
[1723750303424,0.448324,57119.0,57118.0,0.00026243]
[1723750303721,0.3608,57119.0,57118.0,0.22778743]
[1723750303925,0.3608,57125.0,57121.0,0.08752]
[1723750304129,0.3608,57125.0,57121.0,0.14]
[1723750304326,0.3608,57125.0,57124.0,0.087516]
[1723750304633,0.36106243,57130.0,57126.0,0.087513]
[1723750304824,0.087511,57128.0,57126.0,0.14]
[1723750305026,0.087522,57121.0,57118.0,0.00126243]
[1723750305221,0.3608,57119.0,57118.0,0.17126243]
[1723750305424,0.3608,57119.0,57118.0,0.17026243]
[1723750305621,0.3638,57119.0,57118.0,0.17126243]
[1723750305822,0.451324,57119.0,57118.0,0.17126243]
[1723750306025,0.3638,57119.0,57118.0,0.17126243]
[1723750306228,0.451324,57119.0,57118.0,0.11773872]
[1723750306529,0.087528,57116.0,57113.0,0.00870694]
[1723750306722,0.3608,57114.0,57113.0,0.15]
[1723750306924,0.3608,57114.0,57113.0,0.237533]
[1723750308228,0.3608,57114.0,57113.0,1.162813]
[1723750308632,0.3608,57124.0,57123.0,0.087517]
[1723750308823,0.33486501,57124.0,57123.0,0.237517]
[1723750309232,0.00026243,57130.0,57124.0,0.087515]
[1723750309425,0.05070621,57129.0,57124.0,0.227515]
[1723750309640,0.05070621,57128.0,57125.0,0.087514]
[1723750309820,0.05070621,57129.0,57125.0,0.247514]
[1723750310221,0.087513,57126.0,57125.0,0.16]
[1723750310929,0.36106243,57130.0,57125.0,0.16]
[1723750311140,0.36106243,57130.0,57126.0,0.087513]
[1723750311328,0.36106243,57130.0,57126.0,0.257513]
[1723750311836,0.36106243,57130.0,57126.0,0.17]
[1723750312221,0.36106243,57130.0,57116.0,0.448327]
[1723750312222,0.087516,57124.0,57116.0,0.3608]
[1723750312426,0.087516,57124.0,57118.0,0.16026243]
[1723750312427,0.448316,57124.0,57118.0,0.16026243]
[1723750312635,0.41149113,57124.0,57118.0,0.16026243]
[1723750312822,0.05069113,57126.0,57121.0,0.3608]
[1723750313023,0.36206243,57130.0,57121.0,0.3608]
[1723750313024,0.05069113,57128.0,57121.0,0.5208]
[1723750313235,0.41275356,57130.0,57121.0,0.5208]
[1723750313426,0.41275356,57130.0,57124.0,0.087516]
[1723750313631,0.36206243,57130.0,57124.0,0.16]
[1723750313833,0.36206243,57130.0,57127.0,0.08751]
[1723750314146,0.00126243,57130.0,57127.0,0.14]
[1723750314830,0.36206243,57130.0,57128.0,0.08751]
[1723750315036,0.3608,57142.0,57129.0,0.24508]
[1723750315340,0.41148755,57147.0,57133.0,0.3608]
[1723750315531,0.05068755,57149.0,57133.0,0.5108]
[1723750315842,0.05068755,57149.0,57145.0,0.087483]
[1723750316138,0.535764,57146.0,57145.0,0.04536786]
[1723750316442,0.535764,57146.0,57128.0,0.00886016]
[1723750316443,0.174976,57142.0,57141.0,0.00026243]